bitfinex/quotes_ETHUSD_20241123
["timestamp","ask_amount","ask_price","bid_price","bid_amount"]
[1732360814553,0.02997816,3347.9,3347.0,3.8471]
[1732360814773,0.02997816,3347.9,3347.0,0.8471]
[1732360815284,0.02997816,3347.9,3347.0,3.8471]
[1732360815688,0.8024,3348.0,3347.1,1.12477091]
[1732360815984,0.8024,3348.0,3347.2,0.55]
[1732360816975,0.8024,3348.0,3347.3,0.02987072]
[1732360817283,0.7627,3348.3,3347.5,0.7978]
[1732360817451,0.7627,3348.3,3347.6,0.57986734]
[1732360818069,0.7627,3348.3,3347.7,0.2971]
[1732360818247,0.7627,3348.8,3347.9,0.2971]
[1732360819283,0.7627,3348.8,3348.1,0.2971]
[1732360819491,0.7627,3348.8,3348.3,0.2971]
[1732360819696,0.7627,3348.8,3348.5,0.2971]
[1732360820800,0.7627,3348.8,3348.3,0.2971]
[1732360821801,0.7627,3348.8,3348.1,0.2971]
[1732360822374,0.7627,3348.8,3348.3,3.2971]
[1732360822573,0.7627,3348.8,3348.5,0.2971]
[1732360823505,0.7627,3348.8,3348.2,0.2971]
[1732360823704,0.8104,3349.3,3348.3,3.7901857]
[1732360823877,0.8104,3349.3,3348.3,0.7901857]
[1732360824096,0.8104,3349.3,3348.4,0.55]
[1732360824275,0.16575,3349.2,3348.4,0.55]
[1732360824893,0.16575,3349.2,3348.3,0.2971]
[1732360825098,0.8081,3349.1,3348.4,0.55]
[1732360825967,0.8081,3349.1,3348.1,0.2971]
[1732360826170,0.8081,3349.1,3348.4,0.55]
[1732360827216,0.8081,3349.1,3348.3,0.2971]
[1732360827527,0.8081,3349.1,3348.4,0.55]
[1732360828211,0.8081,3349.1,3348.3,0.2971]
[1732360828414,0.8081,3349.1,3348.4,0.55]
[1732360829008,0.8081,3349.1,3348.4,0.45]
[1732360829325,0.8081,3349.1,3348.0,0.827662]
[1732360829326,0.8081,3349.1,3348.1,0.2971]
[1732360829494,0.8081,3349.1,3348.3,0.2971]
[1732360830295,0.8081,3349.1,3348.3,3.2971]
[1732360830827,0.8081,3349.1,3348.2,0.2971]
[1732360831027,0.02997816,3349.0,3348.2,0.2971]
[1732360831192,0.8081,3349.2,3348.4,0.2971]
[1732360831394,0.8081,3349.0,3348.4,0.2971]
[1732360831695,0.8081,3348.8,3347.7,0.2971]
[1732360832039,0.8081,3348.8,3347.9,0.2971]
[1732360832541,0.8081,3348.8,3348.0,0.058245]
[1732360833443,0.8081,3348.8,3348.2,0.2971]
[1732360833595,0.8081,3348.8,3348.2,1.56400448]
[1732360833948,0.8081,3348.8,3348.4,0.2971]
[1732360834234,0.8081,3348.8,3348.5,0.6079588]
[1732360835172,0.8081,3348.8,3348.6,0.2971]
[1732360835373,0.8081,3348.8,3348.7,0.05783594]
[1732360836258,0.8081,3349.4,3348.7,0.05783594]
[1732360836452,0.16851782,3349.3,3348.7,0.05783594]
[1732360837341,0.8081,3349.1,3348.7,0.05783594]
[1732360837541,0.8081,3348.9,3348.3,0.2971]
[1732360837735,0.8081,3348.9,3348.4,0.05580337]
[1732360838477,0.8081,3348.9,3348.0,3.45254082]
[1732360838677,0.8081,3348.9,3348.5,0.05574194]
[1732360838850,0.8081,3348.9,3348.1,0.2971]
[1732360839053,0.8016064,3348.9,3348.6,0.05568051]
[1732360839272,0.8016064,3348.9,3348.1,0.2971]
[1732360839468,0.8016064,3348.9,3348.7,0.05561908]
[1732360839643,0.8016064,3348.9,3348.1,0.2971]
[1732360839839,0.8016064,3348.9,3348.8,0.05555766]
[1732360840047,0.8016064,3348.9,3348.1,0.2971]
[1732360840365,0.8016064,3348.9,3348.2,0.05592625]
[1732360845121,0.8016064,3348.9,3348.3,0.2971]
[1732360845332,0.8016064,3348.9,3348.5,0.2971]
[1732360845904,0.8016064,3348.9,3348.6,0.05567149]
[1732360846334,0.759,3349.4,3348.6,0.05567149]
[1732360846535,0.93841383,3349.4,3348.6,0.05567149]
[1732360846736,0.759,3349.4,3348.6,0.05567149]
[1732360849257,0.759,3349.2,3348.6,0.05567149]
[1732360849618,0.759,3349.0,3348.6,0.05567149]
[1732360849819,0.91379782,3349.0,3348.6,0.05567149]
[1732360850026,0.8226,3348.8,3348.6,0.05567149]
[1732360850273,0.8226,3348.8,3348.6,0.35277149]
[1732360851081,0.8226,3348.8,3348.6,0.05567149]
[1732360851403,0.8226,3348.8,3348.1,0.2971]
[1732360851555,0.8226,3348.8,3348.2,0.05590007]
[1732360852659,0.8226,3348.6,3348.2,0.05590007]
[1732360853059,0.8226,3348.6,3347.9,0.2971]
[1732360853259,0.8226,3348.6,3348.3,0.05583991]
[1732360853489,0.8226,3348.6,3347.9,0.2971]
[1732360853689,0.8226,3348.6,3348.4,0.05577847]
[1732360853891,0.8226,3348.6,3348.0,0.2971]
[1732360854097,0.8226,3348.6,3348.5,0.05572239]
[1732360854267,0.8226,3348.6,3347.6,3.0]
[1732360854478,0.18477598,3349.0,3347.7,0.2971]
[1732360854479,0.8226,3348.4,3347.7,0.2971]
[1732360854806,0.8226,3348.2,3347.8,0.2971]
[1732360854969,0.02997816,3348.1,3347.8,0.2971]
[1732360855200,0.02997816,3348.1,3347.0,0.42329164]
[1732360855201,0.8226,3348.0,3347.0,0.42329164]
[1732360855492,0.8226,3348.0,3347.1,0.2971]
[1732360855986,0.02997816,3347.9,3347.0,0.2971]
[1732360856394,0.8226,3348.0,3347.0,0.2971]
[1732360856966,0.8226,3348.0,3347.0,0.72039164]
[1732360857454,0.8226,3348.0,3347.1,0.05661488]
[1732360858710,0.8226,3348.0,3347.2,0.8129]
[1732360858868,0.15479782,3349.0,3347.2,1.26606589]
[1732360858869,0.8226,3348.3,3347.2,1.26606589]
[1732360859067,0.8226,3348.3,3347.4,0.55]
[1732360859471,0.8226,3348.3,3347.5,0.05638045]
[1732360860208,0.8226,3348.3,3347.6,0.55]
[1732360860413,0.8226,3348.3,3347.7,0.0562537]
[1732360863097,0.83037816,3348.2,3347.7,0.0562537]
[1732360863500,0.83037816,3348.2,3347.0,3.55]
[1732360863698,0.83037816,3348.2,3347.8,0.05618791]
[1732360863942,0.83037816,3348.2,3347.0,0.55]
[1732360863943,0.83037816,3348.2,3347.0,3.55]
[1732360864300,0.83037816,3348.2,3347.2,0.55]
[1732360864761,0.83037816,3348.2,3347.3,0.05649523]
[1732360865284,0.83037816,3348.2,3346.9,0.55]
[1732360865442,0.83037816,3348.2,3347.4,0.05643376]
[1732360865739,0.83037816,3348.2,3346.7,0.2971]
[1732360865943,0.83037816,3348.2,3347.5,0.05637229]
[1732360866102,0.83037816,3348.2,3346.8,3.0]
[1732360866297,0.83037816,3348.2,3346.8,3.55]
[1732360866612,0.83037816,3348.2,3346.9,0.05674116]
[1732360868099,0.83037816,3348.2,3346.9,0.35384116]
[1732360869267,0.83037816,3348.2,3346.9,0.05674116]
[1732360869427,0.9176303,3348.1,3346.9,0.05674116]
[1732360869632,0.7616,3347.9,3346.7,0.2971]
[1732360869819,0.7616,3347.7,3346.8,0.05636215]
[1732360870023,0.7616,3347.7,3346.9,1.0835]
[1732360870355,0.7616,3347.7,3347.0,0.05624609]
[1732360871449,0.7616,3348.1,3347.1,0.2971]
[1732360871753,0.7616,3348.1,3347.2,0.02987207]
[1732360871954,0.7616,3348.1,3347.5,0.2971]
[1732360872346,0.7616,3348.1,3347.6,0.05573044]
[1732360873758,0.7616,3348.1,3347.8,0.2971]
[1732360874134,0.7616,3348.1,3347.9,0.05554612]
[1732360875018,0.7616,3348.1,3347.2,0.2971]
[1732360875223,0.859,3349.3,3347.4,0.2971]
[1732360875224,0.79157816,3348.0,3347.4,0.2971]
[1732360875425,0.79157816,3348.0,3347.5,0.05595976]
[1732360875653,0.79157816,3348.0,3346.8,0.2971]
[1732360875859,0.79157816,3348.0,3347.6,0.05167329]
[1732360876021,0.79157816,3348.0,3346.8,0.2971]
[1732360876220,0.79157816,3348.0,3346.3,0.2971]
[1732360876456,0.79157816,3348.0,3346.5,0.2971]
[1732360876653,0.79157816,3348.0,3346.7,0.2971]
[1732360876819,0.79157816,3348.0,3346.9,0.2971]
[1732360877018,0.79157816,3348.0,3347.0,0.05204203]
[1732360877663,0.79157816,3348.0,3347.1,0.55]
[1732360878158,0.79157816,3348.0,3347.3,0.55]
[1732360878359,0.79157816,3348.0,3347.2,0.05195367]
[1732360878673,0.79157816,3348.0,3347.3,0.05188864]
[1732360879023,0.79157816,3348.0,3346.9,0.2971]
[1732360879221,0.79157816,3348.0,3347.0,0.05207303]
[1732360879459,0.791578,3347.9,3346.8,0.2971]
[1732360879661,0.79157816,3347.8,3347.1,0.05199101]
[1732360879842,0.02997816,3347.7,3346.9,0.3492345]
[1732360880033,0.7616,3347.6,3346.9,0.3492345]
[1732360880230,0.79157816,3347.6,3346.9,0.3492345]
[1732360880657,0.79157816,3347.6,3346.9,0.0521345]
[1732360880850,0.7616,3347.6,3346.9,0.0521345]
[1732360881520,0.7616,3347.6,3347.0,0.55]
[1732360881859,0.7616,3347.6,3347.1,0.05186969]
[1732360882219,0.7616,3347.6,3347.0,0.55]
[1732360882419,0.7616,3347.6,3347.1,0.05174422]
[1732360882621,0.7773,3347.4,3347.2,0.55]
[1732360882852,0.7773,3347.4,3347.3,0.60160077]
[1732360885425,0.7991,3347.8,3347.3,0.60160077]
[1732360885623,0.7991,3347.8,3347.4,0.2971]
[1732360885876,0.7991,3347.8,3347.5,0.05131141]
[1732360886163,0.7991,3349.1,3347.5,0.05131141]
[1732360886364,0.55,3348.4,3347.7,0.55]
[1732360886667,0.02997816,3348.8,3347.8,0.05129551]
[1732360886825,0.7991,3348.8,3347.8,0.05129551]
[1732360887190,0.7991,3348.7,3347.8,0.05129551]
[1732360887469,0.7991,3348.5,3347.8,0.05129551]
[1732360887839,0.7991,3348.5,3348.0,0.2971]
[1732360888165,0.02997816,3348.4,3348.1,0.05111072]
[1732360888342,0.82907816,3348.5,3348.1,0.05111072]
[1732360889360,0.7991,3348.5,3348.1,0.05111072]
[1732360889560,0.7991,3348.5,3347.8,0.2971]
[1732360889768,0.7991,3348.5,3348.2,0.05102723]
[1732360890062,0.7991,3348.5,3347.7,0.55]
[1732360890063,0.96191782,3348.5,3347.9,0.2971]
[1732360890276,0.7991,3348.5,3348.0,0.60117061]
[1732360894175,0.7991,3348.3,3348.0,0.05117061]
[1732360894350,0.02997816,3348.2,3348.0,0.05117061]
[1732360894548,0.7991,3348.3,3347.7,0.8471]
[1732360894750,0.7991,3348.3,3348.1,0.05108218]
[1732360895076,0.7991,3348.3,3348.2,0.05100608]
[1732360895315,0.7991,3348.3,3347.8,0.55]
[1732360895436,0.7991,3348.3,3348.2,0.05100608]
[1732360895780,0.7991,3348.7,3348.2,0.55]
[1732360895971,0.15982,3348.6,3348.2,0.60088198]
[1732360896282,0.15982,3348.6,3348.2,0.05088198]
[1732360896449,0.7991,3348.7,3348.3,0.55]
[1732360896648,0.7991,3348.7,3348.4,0.05082116]
[1732360897039,0.7991,3348.7,3348.0,0.55]
[1732360897386,0.7991,3348.7,3348.1,0.05102594]
[1732360897743,0.7991,3348.7,3348.2,0.55]
[1732360898143,0.7991,3348.7,3348.3,0.05096473]
[1732360898457,0.95892,3348.7,3348.0,0.55]
[1732360898637,0.95892,3348.7,3348.1,0.05112907]
[1732360898836,0.7991,3348.7,3348.2,0.55]
[1732360899102,0.7991,3348.7,3348.3,0.05102678]
[1732360899475,0.7991,3348.7,3347.9,0.7986]
[1732360899682,0.7991,3348.7,3348.0,0.60119093]
[1732360901292,0.95892,3348.7,3348.0,0.60119093]
[1732360903371,0.7991,3348.7,3348.0,0.60119093]
[1732360903970,0.7991,3348.8,3348.0,0.60119093]
[1732360910019,0.7991,3348.8,3348.1,0.7668]
[1732360910219,0.7991,3348.8,3348.2,0.60129711]
[1732360911409,0.8082,3349.4,3348.4,0.55]
[1732360911722,0.7991,3349.1,3348.6,0.55]
[1732360912081,0.7991,3349.1,3348.7,0.05095555]
[1732360914984,0.8082,3349.4,3348.7,0.05095555]
[1732360915390,0.55,3349.3,3348.7,0.05095555]
[1732360917124,0.55,3349.3,3348.8,0.7668]
[1732360917427,0.55,3349.3,3348.9,0.05081722]
[1732360920026,0.55,3349.3,3348.6,0.8471]
[1732360920225,0.80187816,3349.2,3348.7,0.05073027]
[1732360920523,0.80187816,3349.2,3348.3,0.2971]
[1732360920732,0.80187816,3349.2,3348.8,0.05071082]
[1732360920888,0.7719,3349.2,3348.3,0.2971]
[1732360921226,0.7719,3349.2,3348.4,0.05095643]
[1732360921589,0.7719,3349.2,3348.2,0.2971]
[1732360921791,0.7719,3349.2,3348.5,0.05089503]
[1732360921998,0.7719,3349.2,3348.3,0.8471]
[1732360922623,0.7719,3349.2,3348.4,0.05093546]
[1732360923821,0.80187816,3349.2,3348.4,0.05093546]
[1732360924001,0.80187816,3349.2,3348.2,0.2971]
[1732360924308,0.80187816,3349.2,3348.3,0.05101785]
[1732360924791,0.80187816,3349.2,3347.6,0.8329]
[1732360925195,0.80187816,3349.2,3347.7,0.05138309]
[1732360925403,0.80187816,3349.2,3347.7,0.34848309]
[1732360925601,0.80187816,3349.2,3347.7,0.05138309]
[1732360925901,0.7678,3349.0,3347.2,0.832]
[1732360926244,0.79777816,3348.9,3347.3,0.05166996]
[1732360926429,0.79777816,3348.9,3347.3,0.34876996]
[1732360928242,0.79777816,3348.9,3347.4,0.55]
[1732360928604,0.79777816,3348.9,3347.5,0.05148064]
[1732360930115,0.7678,3348.8,3347.6,0.55]
[1732360930319,0.02997816,3348.7,3347.7,0.832]
[1732360930719,0.02997816,3348.7,3347.8,0.05135872]
[1732360930918,0.18249668,3348.7,3347.8,0.05135872]
[1732360931714,0.7678,3348.6,3347.8,0.05135872]
[1732360932060,0.02997816,3348.5,3347.8,0.05135872]
[1732360932353,0.7678,3348.4,3347.5,0.832]
[1732360932554,0.7678,3348.2,3347.9,0.05131783]
[1732360932861,0.7678,3348.2,3347.3,0.2971]
[1732360933081,0.7678,3348.2,3347.2,0.832]
[1732360933082,0.7678,3348.2,3347.4,0.34873792]
[1732360934054,0.02997816,3348.1,3347.4,0.05163792]
[1732360934272,0.02997816,3348.1,3347.2,0.832]
[1732360934575,0.7678,3348.0,3347.3,0.05159939]
[1732360934782,0.72740705,3348.9,3347.3,0.05159939]
[1732360934783,0.7678,3347.8,3347.3,0.05159939]
[1732360934940,0.1,3348.8,3346.7,0.2971]
[1732360934941,0.7678,3347.6,3346.7,0.2971]
[1732360935456,0.7678,3347.6,3346.8,0.04808691]
[1732360936072,1.5356,3347.6,3346.8,0.04808691]
[1732360936372,1.5356,3347.6,3346.7,0.2971]
[1732360936739,0.7678,3347.6,3346.8,1.6791]
[1732360936943,0.02997816,3347.5,3346.9,0.2971]
[1732360937143,0.7678,3347.6,3346.9,0.2971]
[1732360937373,0.7678,3347.6,3347.0,0.04785908]
[1732360937571,0.02997816,3347.5,3347.0,0.04785908]
[1732360937751,0.7678,3347.4,3347.0,0.04785908]
[1732360937965,0.02997816,3347.3,3347.0,0.04785908]
[1732360938589,0.02997816,3347.3,3346.7,0.2971]
[1732360938745,0.7678,3347.4,3347.1,0.04781239]
[1732360938940,0.7678,3347.4,3346.7,0.2971]
[1732360939576,0.7678,3347.4,3346.8,0.04799677]
[1732360940571,1.5367,3347.6,3346.8,0.04799677]
[1732360941216,0.7678,3347.6,3346.9,1.322]
[1732360941382,0.7678,3347.6,3346.9,1.6191]
[1732360941583,0.7678,3347.6,3347.1,0.8471]
[1732360942112,0.7678,3347.6,3347.2,0.04776752]
[1732360945528,0.7678,3347.6,3347.0,0.2971]
[1732360945690,0.7678,3347.6,3347.1,0.04784383]
[1732360946033,0.7678,3347.6,3347.3,0.2971]
[1732360946194,0.7678,3347.6,3346.4,0.02987447]
[1732360946195,0.80817816,3347.5,3347.2,0.04778238]
[1732360946390,0.96577598,3347.5,3347.4,0.04766076]
[1732360946597,0.96577598,3347.5,3347.3,0.0477222]
[1732360946903,0.1733576,3347.4,3346.6,0.7854]
[1732360947102,0.1733576,3347.4,3346.7,0.34519095]
[1732360947301,0.02997816,3347.3,3346.7,0.34519095]
[1732360947918,0.20491174,3347.3,3346.7,0.34519095]
[1732360948852,0.20491174,3347.3,3346.7,0.2971]
[1732360949726,0.20491174,3347.3,3346.8,0.04803485]
[1732360950452,0.02997816,3347.3,3346.8,0.04803485]
[1732360950662,0.7782,3347.5,3346.8,0.04803485]
[1732360951208,0.7678,3347.6,3347.0,0.55]
[1732360951449,0.7678,3347.6,3347.1,0.34495812]
[1732360953333,0.7678,3347.6,3347.2,0.2971]
[1732360953533,0.02997816,3347.5,3347.3,0.04771424]
[1732360953762,0.02997816,3347.5,3347.2,0.2971]
[1732360953920,0.80817816,3347.5,3347.4,0.04767377]
[1732360954122,0.96577598,3347.5,3346.6,0.7854]
[1732360954338,0.93579782,3347.5,3346.7,0.04810396]
[1732360955214,0.17035978,3347.4,3346.7,0.04810396]
[1732360955618,0.7678,3347.6,3346.7,0.04810396]
[1732360955619,0.7678,3347.6,3346.7,0.0779825]
[1732360955964,0.7678,3347.6,3346.9,0.8471]
[1732360956118,0.7678,3347.6,3347.0,0.81527365]
[1732360956323,0.7678,3347.6,3347.1,0.3449791]
[1732360956859,0.7678,3347.6,3347.2,0.55]
[1732360957242,0.7678,3347.6,3347.3,0.04779816]
[1732360957415,0.7678,3347.6,3347.3,0.2971]
[1732360957849,0.7678,3347.6,3347.4,0.04775769]
[1732360960466,0.7678,3347.6,3347.1,0.2971]
[1732360960763,0.7678,3347.6,3347.2,0.04780566]
[1732360961449,0.7782,3347.9,3347.2,0.04780566]
[1732360961861,1.5564,3347.9,3347.2,0.04780566]
[1732360966976,0.7782,3347.9,3347.2,0.04780566]
[1732360968584,0.7854,3348.0,3347.4,0.2971]
[1732360968752,0.1,3349.5,3347.5,1.6315]
[1732360968753,0.7768,3348.5,3347.5,1.6315]
[1732360968951,0.7854,3348.4,3347.5,1.67910578]
[1732360970654,0.7854,3348.4,3347.6,0.02986966]
[1732360970855,0.7854,3348.4,3347.8,0.2971]
[1732360971076,0.7854,3348.4,3347.6,0.02986966]
[1732360971077,0.7768,3348.9,3347.9,1.1289161]
[1732360971259,0.7768,3348.9,3348.0,0.7844]
[1732360971457,0.7768,3348.8,3348.1,0.0473324]
[1732360971648,0.7768,3348.8,3348.1,0.3444324]
[1732360971850,0.7768,3348.8,3348.1,0.0473324]
[1732360972052,0.93216,3348.8,3348.1,0.0473324]
[1732360972593,0.93216,3348.8,3348.1,0.3444324]
[1732360973590,0.02997816,3348.7,3348.1,0.0473324]
[1732360973946,0.93216,3348.8,3348.1,0.0473324]
[1732360974149,0.17389382,3348.7,3348.1,0.0473324]
[1732360975634,0.02997816,3348.6,3348.1,0.0473324]
[1732360976409,0.17389382,3348.7,3348.1,0.0473324]
[1732360977305,0.7768,3348.8,3348.1,0.0473324]
[1732360979321,0.7768,3348.6,3348.1,0.0473324]
[1732360979480,0.7768,3348.6,3347.9,0.2971]
[1732360979481,0.02997816,3348.5,3347.9,0.2971]
[1732360979684,0.7768,3348.6,3348.0,0.04763978]
[1732360979997,0.02997816,3348.5,3348.0,0.04763978]
[1732360980383,0.02997816,3348.5,3347.6,0.814]
[1732360980384,0.02997816,3348.5,3347.7,0.2971]
[1732360980731,0.7636,3348.4,3347.7,0.2971]
[1732360981017,0.7636,3348.4,3347.8,0.04708937]
[1732360981813,0.7636,3348.4,3347.5,0.2971]
[1732360982319,0.7636,3348.6,3347.6,1.15829991]
[1732360984384,0.7768,3348.8,3347.9,1.1177]
[1732360984584,0.7768,3348.8,3347.6,0.04719991]
[1732360984585,0.7768,3348.8,3348.2,0.8206]
[1732360984783,0.7768,3348.8,3348.4,0.2971]
[1732360985206,0.7768,3348.8,3348.5,0.04683591]
[1732360985590,0.7768,3348.8,3348.4,0.32696309]
[1732360985591,0.8308,3349.4,3348.6,1.1242]
[1732360985794,0.8308,3349.4,3348.6,1.17097451]
[1732360986332,0.423292,3349.3,3348.6,1.17097451]
[1732360990508,0.8308,3349.6,3348.6,1.17097451]
[1732360990706,0.17745584,3349.5,3348.6,1.17097451]
[1732360993135,0.17745584,3349.5,3348.6,0.87387451]
[1732360994534,0.8308,3349.3,3348.6,0.04677451]
[1732360994741,0.02997816,3349.2,3348.3,0.8271]
[1732360994922,0.02997816,3349.2,3348.4,0.04688414]
[1732360995098,0.02997816,3349.2,3348.3,0.8271]
[1732360996700,0.8308,3349.1,3347.8,0.8271]
[1732360997040,0.8308,3348.9,3347.9,0.0471998]
[1732360997514,0.02997816,3348.8,3347.9,0.0471998]
[1732360997700,0.8308,3348.9,3347.9,0.0471998]
[1732360997900,0.02997816,3348.8,3347.8,0.8271]
[1732360998241,0.02997816,3348.8,3347.9,0.34429121]
[1732361000170,0.77575552,3348.8,3347.9,0.34429121]
[1732361000455,0.16065555,3348.7,3347.9,0.34429121]
[1732361002051,0.16065555,3348.7,3347.9,0.04719121]
[1732361002052,0.84717816,3348.6,3347.9,0.04719121]
[1732361002421,0.84717816,3348.6,3347.5,1.0884]
[1732361002616,0.84717816,3348.6,3348.0,0.04713838]
[1732361002857,0.84717816,3348.6,3347.5,1.0884]
[1732361003022,0.84717816,3348.6,3348.1,0.04709658]
[1732361003217,0.84717816,3348.6,3347.5,0.7913]
[1732361003423,0.84717816,3348.6,3348.2,0.04703517]
[1732361003642,0.84717816,3348.6,3347.5,0.7913]
[1732361003845,0.84717816,3348.6,3348.3,0.04696517]
[1732361004059,0.84717816,3348.6,3347.5,0.7913]
[1732361004454,0.84717816,3348.6,3347.6,0.04740072]
[1732361008981,0.84717816,3348.6,3347.7,0.7835]
[1732361008982,0.8172,3348.6,3347.7,0.7835]
[1732361009453,0.8172,3348.6,3347.8,0.04711639]
[1732361010187,0.02997816,3348.5,3347.8,0.04711639]
[1732361011158,0.7686,3348.4,3347.8,0.04711639]
[1732361011358,0.02997816,3348.3,3347.3,0.7558]
[1732361011684,0.02997816,3348.3,3347.4,0.04596155]
[1732361013365,0.7686,3348.4,3347.4,0.04596155]
[1732361013680,0.18562418,3348.3,3347.3,0.7558]
[1732361013997,0.18562418,3348.3,3346.5,0.2971]
[1732361013998,0.7686,3348.2,3347.4,0.04383039]
[1732361014297,0.7686,3348.0,3347.4,0.04383039]
[1732361014485,0.02997816,3347.9,3347.1,0.7558]
[1732361014658,0.02997816,3347.9,3347.2,0.0439237]
[1732361015470,0.02997816,3347.9,3347.1,0.7558]
[1732361015797,0.02997816,3347.9,3347.2,0.04394926]
[1732361016175,0.7686,3347.8,3346.8,0.7558]
[1732361016488,0.02997816,3347.7,3346.8,0.7558]
[1732361016691,0.02997816,3347.7,3346.9,0.04413358]
[1732361016997,0.7686,3347.6,3346.9,0.04413358]
[1732361017184,0.02997816,3347.5,3346.9,0.04413358]
[1732361017376,0.02997816,3347.5,3346.0,1.0529]
[1732361017579,0.02997816,3347.5,3346.1,0.7986925]
[1732361021988,0.02997816,3347.5,3346.3,0.8115]
[1732361022188,0.02997816,3347.5,3346.4,0.8115]
[1732361022509,0.02997816,3347.5,3346.4,0.85421778]
[1732361023698,0.79857816,3347.5,3346.4,0.85421778]
[1732361023899,0.7686,3347.5,3346.5,0.8115]
[1732361024107,0.7686,3347.5,3346.5,1.1086]
[1732361024401,0.79857816,3347.5,3346.7,0.8115]
[1732361024611,0.15161036,3347.4,3346.7,0.8115]
[1732361024813,0.15161036,3347.4,3346.8,0.04246557]
[1732361025373,0.78487816,3347.3,3346.8,0.04246557]
[1732361025578,0.17050885,3347.2,3346.8,0.04246557]
[1732361026210,0.02997816,3347.1,3346.8,0.04246557]
[1732361028286,0.02997816,3347.1,3346.4,0.7734]
[1732361028625,0.17050885,3347.2,3346.5,0.04264088]
[1732361028626,0.20048701,3347.2,3346.5,0.04264088]
[1732361029330,0.20048701,3347.2,3346.4,0.7734]
[1732361029830,0.20048701,3347.2,3346.5,0.04267869]
[1732361030400,0.02997816,3347.2,3346.6,0.7734]
[1732361030595,0.02997816,3347.4,3346.6,0.7734]
[1732361030800,0.02997816,3347.4,3346.7,0.04255577]
[1732361031441,0.7549,3347.3,3346.7,0.04255577]
[1732361031749,0.26121713,3347.2,3346.3,0.7734]
[1732361032421,0.26121713,3347.2,3346.4,0.04283616]
[1732361032814,0.26121713,3347.2,3346.3,0.7734]
[1732361033132,0.26121713,3347.2,3346.4,0.04283616]
[1732361033283,0.26121713,3347.2,3346.3,0.7734]
[1732361033484,0.26121713,3347.2,3346.4,0.04283616]
[1732361033890,0.40161171,3347.1,3346.3,0.7734]
[1732361038634,0.7549,3347.3,3346.4,1.0705]
[1732361038805,0.7549,3347.3,3346.4,1.10037966]
[1732361039114,0.7549,3347.3,3346.5,0.04276934]
[1732361039418,0.7686,3347.5,3346.6,0.7734]
[1732361039822,0.7686,3347.5,3346.7,0.04264642]
[1732361041010,0.7549,3347.6,3346.7,0.04264642]
[1732361041212,1.5235,3347.6,3346.8,0.7736]
[1732361041621,1.5235,3347.6,3346.9,0.04251688]
[1732361042404,0.7549,3347.6,3346.9,0.04251688]
[1732361046100,0.80277816,3347.5,3346.9,0.04251688]
[1732361046300,0.80277816,3347.5,3346.3,0.7894]
[1732361046718,0.80277816,3347.5,3346.4,0.04282768]
[1732361047128,0.80277816,3347.5,3346.3,0.7894]
[1732361047317,0.93043782,3347.4,3346.3,0.7894]
[1732361047513,0.93043782,3347.4,3346.4,0.04282768]
[1732361047836,0.96041598,3347.4,3346.3,0.7894]
[1732361050507,0.93043782,3347.4,3346.4,0.55]
[1732361050729,0.16932789,3347.3,3346.4,0.55]
[1732361051646,0.16932789,3347.3,3346.4,0.57988061]
[1732361051804,0.7728,3347.4,3346.5,0.7788]
[1732361052010,0.7728,3347.4,3346.6,0.0426552]
[1732361052312,0.7728,3347.4,3346.7,0.55]
[1732361052706,0.7728,3347.4,3346.8,0.04254198]
[1732361052945,0.93043782,3347.4,3346.8,0.04254198]
[1732361054654,0.93043782,3347.4,3346.2,0.7788]
[1732361054655,0.756,3347.2,3346.2,0.7788]
[1732361054808,0.756,3347.2,3346.3,0.55]
[1732361055004,0.02997816,3347.1,3346.4,0.04278783]
[1732361057163,0.02997816,3347.1,3346.5,0.55]
[1732361057342,0.756,3347.2,3346.5,0.55]
[1732361057644,0.756,3347.2,3346.6,0.04092833]
[1732361060218,0.756,3347.0,3346.6,0.04092833]
[1732361062861,1.512,3347.0,3346.6,0.04092833]
[1732361063663,0.7877,3347.6,3346.7,1.3441]
[1732361063829,0.81767816,3347.6,3346.7,1.3441]
[1732361064029,0.7788,3347.2,3346.8,0.04081527]
[1732361064425,0.7788,3347.2,3346.7,1.3441]
[1732361064942,0.7788,3347.2,3346.8,0.04081527]
[1732361065140,0.15778738,3347.5,3346.8,0.04081527]
[1732361065347,1.36376012,3347.4,3346.7,1.3441]
[1732361065637,1.36376012,3347.4,3346.8,0.04081527]
[1732361066059,1.36376012,3347.4,3346.7,1.3441]
[1732361069570,1.36376012,3347.4,3346.8,0.04081527]
[1732361070262,1.36376012,3347.4,3346.7,1.3441]
[1732361070432,1.36376012,3347.4,3346.7,0.7941]
[1732361070631,1.36376012,3347.4,3346.8,0.04081527]
[1732361070632,0.21814383,3347.3,3346.8,0.04081527]
[1732361070837,0.21814383,3347.3,3346.7,0.7941]
[1732361071066,1.36376012,3347.4,3346.8,0.04081527]
[1732361071433,1.36376012,3347.4,3346.7,0.7941]
[1732361071626,1.36376012,3347.4,3346.8,0.04081527]
[1732361071830,1.36376012,3347.4,3346.7,0.7941]
[1732361072132,1.36376012,3347.4,3346.8,0.04081527]
[1732361072476,1.36376012,3347.4,3346.7,0.7941]
[1732361072830,1.36376012,3347.4,3346.8,0.04081527]
[1732361073031,0.21514601,3347.3,3346.7,0.7941]
[1732361073330,1.36376012,3347.4,3346.7,0.7941]
[1732361073331,1.190194,3347.4,3346.8,0.0407943]
[1732361074170,1.190194,3347.4,3346.7,0.7941]
[1732361074534,1.190194,3347.4,3346.8,0.0410623]
[1732361074933,1.190194,3347.4,3346.7,0.7941]
[1732361075580,1.190194,3347.4,3346.8,0.04103444]
[1732361075984,1.190194,3347.4,3346.7,0.7941]
[1732361076710,1.190194,3347.4,3346.8,0.04102934]
[1732361077100,1.190194,3347.4,3346.7,0.7941]
[1732361077612,1.190194,3347.4,3346.8,0.04103036]
[1732361077819,1.190194,3347.4,3346.7,0.7941]
[1732361077974,1.190194,3347.4,3346.8,0.04103036]
[1732361078369,1.190194,3347.4,3346.7,0.7941]
[1732361078679,1.190194,3347.4,3346.8,0.04100939]
[1732361079215,1.190194,3347.4,3346.7,0.7941]
[1732361079576,1.190194,3347.4,3346.9,0.7998]